[Event "Titled Tuesday Blitz February 15 Early 2022"]
[White "Johnson, Ben"]
[Black "Korkmaz, Necmettin"]
[WhiteFideId "2010917"]
[BlackFideId "6303285"]
[WhiteElo "2210"]
[BlackElo "2094"]
[Result "0-1"]
[Round "04"]
[TimeControl "180+1"]
[Date "2022.02.15"]
[WhiteClock "0:00:45"]
[BlackClock "0:02:19"]

1. Nf3 {[%clk 0:03:00]}  d5 {[%clk 0:02:59]} 2. e3 {[%clk 0:03:00]}  Nf6 {[%clk 0:02:59]} 3. c4 {[%clk 0:03:00]}  c6 {[%clk 0:02:59]} 4. Nc3 {[%clk 0:02:58]}  e6 {[%clk 0:02:59]} 5. b3 {[%clk 0:02:57]}  Nbd7 {[%clk 0:02:59]} 6. Bb2 {[%clk 0:02:55]}  Bd6 {[%clk 0:02:59]} 7. Be2 {[%clk 0:02:52]}  O-O {[%clk 0:02:59]} 8. O-O {[%clk 0:02:50]}  Qe7 {[%clk 0:02:59]} 9. d4 {[%clk 0:02:41]}  dxc4 {[%clk 0:02:57]} 10. bxc4 {[%clk 0:02:41]}  e5 {[%clk 0:02:57]} 11. Qc2 {[%clk 0:02:22]}  e4 {[%clk 0:02:49]} 12. Nd2 {[%clk 0:02:18]}  Re8 {[%clk 0:02:49]} 13. h3 {[%clk 0:01:56]}  Nf8 {[%clk 0:02:47]} 14. d5 {[%clk 0:01:50]}  Qe5 {[%clk 0:02:36]} 15. g3 {[%clk 0:01:30]}  Qf5 {[%clk 0:02:22]} 16. Bf3 {[%clk 0:00:45]}  exf3 {[%clk 0:02:19]} 0-1


[Site "https://www.chess.com"]

[Event "Titled Tuesday Blitz February 15 Early 2022"]
[White "Jumabayev, Rinat"]
[Black "Ferreira, Vitor Hugo Vieira"]
[WhiteFideId "13702661"]
[BlackFideId "2119765"]
[WhiteElo "2561"]
[BlackElo "2216"]
[Result "1-0"]
[Round "04"]
[TimeControl "180+1"]
[Date "2022.02.15"]
[WhiteClock "0:00:08"]
[BlackClock "0:00:13"]

1. e4 {[%clk 0:03:00]}  c5 {[%clk 0:02:57]} 2. Ne2 {[%clk 0:03:01]}  d6 {[%clk 0:02:54]} 3. Nbc3 {[%clk 0:02:59]}  Nc6 {[%clk 0:02:54]} 4. h3 {[%clk 0:02:59]}  g6 {[%clk 0:02:51]} 5. d4 {[%clk 0:02:56]}  cxd4 {[%clk 0:02:50]} 6. Nxd4 {[%clk 0:02:57]}  Bg7 {[%clk 0:02:51]} 7. Be3 {[%clk 0:02:58]}  Nf6 {[%clk 0:02:49]} 8. Bc4 {[%clk 0:02:58]}  Qa5 {[%clk 0:02:34]} 9. O-O {[%clk 0:02:37]}  Qb4 {[%clk 0:02:30]} 10. Bb3 {[%clk 0:02:16]}  O-O {[%clk 0:02:22]} 11. a3 {[%clk 0:02:04]}  Qa5 {[%clk 0:02:22]} 12. Re1 {[%clk 0:01:59]}  Bd7 {[%clk 0:02:13]} 13. Nd5 {[%clk 0:01:58]}  Rfe8 {[%clk 0:02:10]} 14. Nf3 {[%clk 0:01:31]}  Rac8 {[%clk 0:02:08]} 15. c3 {[%clk 0:01:30]}  Be6 {[%clk 0:01:57]} 16. Nxf6+ {[%clk 0:01:25]}  Bxf6 {[%clk 0:01:55]} 17. Bxe6 {[%clk 0:01:25]}  fxe6 {[%clk 0:01:55]} 18. Qb3 {[%clk 0:01:25]}  d5 {[%clk 0:01:51]} 19. Rad1 {[%clk 0:01:24]}  Red8 {[%clk 0:01:47]} 20. Bg5 {[%clk 0:01:22]}  Qb6 {[%clk 0:01:43]} 21. Qa2 {[%clk 0:01:11]}  Qb5 {[%clk 0:01:43]} 22. e5 {[%clk 0:00:56]}  Bg7 {[%clk 0:01:39]} 23. a4 {[%clk 0:00:38]}  Qc4 {[%clk 0:01:37]} 24. Qa1 {[%clk 0:00:29]}  h6 {[%clk 0:01:28]} 25. Be3 {[%clk 0:00:29]}  g5 {[%clk 0:01:23]} 26. Nd4 {[%clk 0:00:28]}  Nxd4 {[%clk 0:01:18]} 27. Rxd4 {[%clk 0:00:28]}  Qc7 {[%clk 0:01:14]} 28. f4 {[%clk 0:00:28]}  Qd7 {[%clk 0:01:06]} 29. Qd1 {[%clk 0:00:29]}  Qe8 {[%clk 0:01:03]} 30. fxg5 {[%clk 0:00:29]}  Bxe5 {[%clk 0:01:02]} 31. gxh6 {[%clk 0:00:29]}  Bxd4 {[%clk 0:01:02]} 32. Bxd4 {[%clk 0:00:28]}  Qg6 {[%clk 0:01:01]} 33. Bg7 {[%clk 0:00:28]}  d4 {[%clk 0:00:58]} 34. Bxd4 {[%clk 0:00:28]}  Qxh6 {[%clk 0:00:56]} 35. Re5 {[%clk 0:00:28]}  Rd5 {[%clk 0:00:55]} 36. Re4 {[%clk 0:00:27]}  Rcd8 {[%clk 0:00:38]} 37. Qe2 {[%clk 0:00:20]}  e5 {[%clk 0:00:36]} 38. Bxe5 {[%clk 0:00:17]}  Rd2 {[%clk 0:00:31]} 39. Qg4+ {[%clk 0:00:17]}  Kf7 {[%clk 0:00:30]} 40. Bf4 {[%clk 0:00:11]}  Rd1+ {[%clk 0:00:29]} 41. Kh2 {[%clk 0:00:12]}  Qf6 {[%clk 0:00:26]} 42. Bg5 {[%clk 0:00:11]}  Qg6 {[%clk 0:00:21]} 43. Rxe7+ {[%clk 0:00:11]}  Kf8 {[%clk 0:00:21]} 44. Qf4+ {[%clk 0:00:10]}  Kg8 {[%clk 0:00:21]} 45. Bf6 {[%clk 0:00:10]}  R8d7 {[%clk 0:00:17]} 46. Re3 {[%clk 0:00:08]}  R1d5 {[%clk 0:00:14]} 47. Rg3 {[%clk 0:00:08]}  Kh7 {[%clk 0:00:13]} 48. Rxg6 {[%clk 0:00:07]}  Kxg6 {[%clk 0:00:14]} 49. Bd4 {[%clk 0:00:08]}  Rf5 {[%clk 0:00:13]} 50. Qg4+ {[%clk 0:00:08]}  Rg5 {[%clk 0:00:14]} 51. Qxd7 {[%clk 0:00:09]}  Rg3 {[%clk 0:00:13]} 52. Qg7+ {[%clk 0:00:08]} 1-0


[Site "https://www.chess.com"]

[Event "Titled Tuesday Blitz February 15 Early 2022"]
[White "Karabalis, Harilos"]
[Black "Sovetbekova, Nurai"]
[WhiteFideId "4621808"]
[BlackFideId "13801910"]
[WhiteElo "2168"]
[BlackElo "1545"]
[Result "1-0"]
[Round "04"]
[TimeControl "180+1"]
[Date "2022.02.15"]
[WhiteClock "0:01:35"]
[BlackClock "0:00:12"]

1. e4 {[%clk 0:03:00]}  c5 {[%clk 0:02:59]} 2. a3 {[%clk 0:02:59]}  d5 {[%clk 0:02:54]} 3. exd5 {[%clk 0:02:59]}  Qxd5 {[%clk 0:02:54]} 4. Nc3 {[%clk 0:02:59]}  Qd8 {[%clk 0:02:53]} 5. Bc4 {[%clk 0:02:59]}  Nc6 {[%clk 0:02:51]} 6. Nf3 {[%clk 0:02:53]}  Nf6 {[%clk 0:02:51]} 7. h3 {[%clk 0:02:51]}  Bf5 {[%clk 0:02:48]} 8. d3 {[%clk 0:02:50]}  e6 {[%clk 0:02:44]} 9. O-O {[%clk 0:02:49]}  Be7 {[%clk 0:02:38]} 10. Re1 {[%clk 0:02:50]}  O-O {[%clk 0:02:37]} 11. Ba2 {[%clk 0:02:50]}  Nd4 {[%clk 0:02:25]} 12. Nh4 {[%clk 0:02:50]}  Bg6 {[%clk 0:02:05]} 13. Ne2 {[%clk 0:02:40]}  Nd5 {[%clk 0:01:51]} 14. Nxg6 {[%clk 0:02:39]}  hxg6 {[%clk 0:01:51]} 15. Ng3 {[%clk 0:02:37]}  Bf6 {[%clk 0:01:43]} 16. c3 {[%clk 0:02:34]}  Nc6 {[%clk 0:01:38]} 17. Qf3 {[%clk 0:02:32]}  Qd7 {[%clk 0:01:27]} 18. Bd2 {[%clk 0:02:26]}  Rad8 {[%clk 0:01:23]} 19. Rad1 {[%clk 0:02:25]}  Nb6 {[%clk 0:00:58]} 20. Be3 {[%clk 0:02:21]}  Ne5 {[%clk 0:00:52]} 21. Qe2 {[%clk 0:02:21]}  Qc6 {[%clk 0:00:43]} 22. Ne4 {[%clk 0:02:16]}  Be7 {[%clk 0:00:38]} 23. Nxc5 {[%clk 0:02:06]}  Bxc5 {[%clk 0:00:27]} 24. Bxc5 {[%clk 0:02:06]}  Qxc5 {[%clk 0:00:21]} 25. Qxe5 {[%clk 0:02:01]}  Qc6 {[%clk 0:00:19]} 26. d4 {[%clk 0:02:00]}  Nc4 {[%clk 0:00:17]} 27. Qe2 {[%clk 0:01:59]}  b5 {[%clk 0:00:17]} 28. Rd3 {[%clk 0:01:50]}  Rd5 {[%clk 0:00:17]} 29. Rf3 {[%clk 0:01:47]}  Rg5 {[%clk 0:00:16]} 30. Bxc4 {[%clk 0:01:41]}  bxc4 {[%clk 0:00:15]} 31. Qe4 {[%clk 0:01:41]}  Qc7 {[%clk 0:00:14]} 32. Qf4 {[%clk 0:01:35]}  Qb6 {[%clk 0:00:12]} 33. Qxg5 {[%clk 0:01:35]} 1-0


[Site "https://www.chess.com"]

[Event "Titled Tuesday Blitz February 15 Early 2022"]
[White "Kirillov, Dmitry"]
[Black "Zheenbekov, Nurgazy"]
[WhiteFideId "34180572"]
[BlackFideId "13800485"]
[WhiteElo "2076"]
[BlackElo "1959"]
[Result "0-1"]
[Round "04"]
[TimeControl "180+1"]
[Date "2022.02.15"]
[WhiteClock "0:00:21"]
[BlackClock "0:00:26"]

1. d4 {[%clk 0:03:00]}  Nf6 {[%clk 0:02:59]} 2. c4 {[%clk 0:03:00]}  e6 {[%clk 0:02:59]} 3. Nf3 {[%clk 0:03:00]}  b6 {[%clk 0:02:59]} 4. e3 {[%clk 0:03:00]}  Bb7 {[%clk 0:02:55]} 5. Nc3 {[%clk 0:03:00]}  Bb4 {[%clk 0:02:52]} 6. Bd3 {[%clk 0:02:59]}  O-O {[%clk 0:02:52]} 7. O-O {[%clk 0:03:00]}  d5 {[%clk 0:02:49]} 8. cxd5 {[%clk 0:02:58]}  exd5 {[%clk 0:02:48]} 9. a3 {[%clk 0:02:57]}  Bd6 {[%clk 0:02:48]} 10. b4 {[%clk 0:02:56]}  a6 {[%clk 0:02:47]} 11. Bb2 {[%clk 0:02:49]}  Re8 {[%clk 0:02:47]} 12. Rc1 {[%clk 0:02:47]}  Nbd7 {[%clk 0:02:47]} 13. Re1 {[%clk 0:02:44]}  Nf8 {[%clk 0:02:44]} 14. Bf1 {[%clk 0:02:44]}  Ng6 {[%clk 0:02:44]} 15. g3 {[%clk 0:02:44]}  Ne4 {[%clk 0:02:34]} 16. Bg2 {[%clk 0:02:44]}  h5 {[%clk 0:02:30]} 17. h4 {[%clk 0:02:42]}  Qf6 {[%clk 0:02:10]} 18. Re2 {[%clk 0:02:33]}  Ne7 {[%clk 0:02:04]} 19. Ne5 {[%clk 0:02:24]}  Nxc3 {[%clk 0:01:50]} 20. Bxc3 {[%clk 0:02:23]}  Ng6 {[%clk 0:01:45]} 21. Nd3 {[%clk 0:02:22]}  Qf5 {[%clk 0:01:34]} 22. Rec2 {[%clk 0:02:16]}  Nf8 {[%clk 0:01:24]} 23. Bf3 {[%clk 0:02:09]}  g6 {[%clk 0:01:23]} 24. a4 {[%clk 0:01:57]}  Nd7 {[%clk 0:01:22]} 25. b5 {[%clk 0:01:55]}  a5 {[%clk 0:01:21]} 26. Bg2 {[%clk 0:01:34]}  Nf6 {[%clk 0:01:21]} 27. Ne5 {[%clk 0:01:33]}  Ne4 {[%clk 0:01:19]} 28. Be1 {[%clk 0:01:27]}  Rad8 {[%clk 0:01:17]} 29. Qd3 {[%clk 0:01:21]}  Bxe5 {[%clk 0:01:14]} 30. dxe5 {[%clk 0:01:21]}  Qxe5 {[%clk 0:01:14]} 31. Rxc7 {[%clk 0:01:19]}  Nc5 {[%clk 0:01:14]} 32. R1xc5 {[%clk 0:01:09]}  bxc5 {[%clk 0:01:14]} 33. Rxb7 {[%clk 0:01:09]}  d4 {[%clk 0:01:11]} 34. e4 {[%clk 0:00:53]}  Qe6 {[%clk 0:01:01]} 35. Bf1 {[%clk 0:00:44]}  Qxe4 {[%clk 0:00:41]} 36. Qc4 {[%clk 0:00:43]}  Qxb7 {[%clk 0:00:40]} 37. Bd2 {[%clk 0:00:37]}  Qd5 {[%clk 0:00:40]} 38. Qxd5 {[%clk 0:00:32]}  Rxd5 {[%clk 0:00:39]} 39. Bg2 {[%clk 0:00:33]}  Rde5 {[%clk 0:00:34]} 40. b6 {[%clk 0:00:31]}  c4 {[%clk 0:00:33]} 41. Bf4 {[%clk 0:00:28]}  c3 {[%clk 0:00:27]} 42. b7 {[%clk 0:00:28]}  f6 {[%clk 0:00:27]} 43. Bxe5 {[%clk 0:00:23]}  fxe5 {[%clk 0:00:26]} 44. Be4 {[%clk 0:00:23]}  Rb8 {[%clk 0:00:26]} 45. Kf1 {[%clk 0:00:21]}  Rxb7 {[%clk 0:00:26]} 0-1


[Site "https://www.chess.com"]

[Event "Titled Tuesday Blitz February 15 Early 2022"]
[White "Komissarov, Alexey"]
[Black "Sahil, Tickoo"]
[WhiteFideId "4176545"]
[BlackFideId "5019710"]
[WhiteElo "2216"]
[BlackElo "2099"]
[Result "1-0"]
[Round "04"]
[TimeControl "180+1"]
[Date "2022.02.15"]
[WhiteClock "0:01:01"]
[BlackClock "0:00:02"]

1. e4 {[%clk 0:03:00]}  c5 {[%clk 0:02:59]} 2. d4 {[%clk 0:02:59]}  cxd4 {[%clk 0:02:59]} 3. c3 {[%clk 0:03:00]}  Nf6 {[%clk 0:02:58]} 4. e5 {[%clk 0:02:58]}  Nd5 {[%clk 0:02:57]} 5. Nf3 {[%clk 0:02:57]}  Nc6 {[%clk 0:02:55]} 6. Bc4 {[%clk 0:02:56]}  Nb6 {[%clk 0:02:54]} 7. Bb3 {[%clk 0:02:54]}  d5 {[%clk 0:02:52]} 8. exd6 {[%clk 0:02:55]}  e6 {[%clk 0:02:50]} 9. O-O {[%clk 0:02:44]}  dxc3 {[%clk 0:02:35]} 10. Nxc3 {[%clk 0:02:43]}  Bxd6 {[%clk 0:02:24]} 11. Bc2 {[%clk 0:02:41]}  g6 {[%clk 0:02:20]} 12. Bh6 {[%clk 0:02:34]}  Bf8 {[%clk 0:02:09]} 13. Qc1 {[%clk 0:02:25]}  Qe7 {[%clk 0:01:51]} 14. Rd1 {[%clk 0:02:14]}  Bd7 {[%clk 0:01:41]} 15. Ne4 {[%clk 0:01:55]}  Bxh6 {[%clk 0:01:32]} 16. Qxh6 {[%clk 0:01:49]}  O-O-O {[%clk 0:01:24]} 17. Nd6+ {[%clk 0:01:47]}  Kb8 {[%clk 0:01:22]} 18. Ng5 {[%clk 0:01:38]}  Be8 {[%clk 0:01:07]} 19. Qg7 {[%clk 0:01:29]}  Rf8 {[%clk 0:00:51]} 20. Nxh7 {[%clk 0:01:23]}  Rxd6 {[%clk 0:00:24]} 21. Rxd6 {[%clk 0:01:14]}  Qxd6 {[%clk 0:00:22]} 22. Qxf8 {[%clk 0:01:14]}  Qxf8 {[%clk 0:00:22]} 23. Nxf8 {[%clk 0:01:14]}  Nd4 {[%clk 0:00:18]} 24. Bd3 {[%clk 0:01:08]}  Nd5 {[%clk 0:00:16]} 25. Nh7 {[%clk 0:01:05]}  Nf4 {[%clk 0:00:09]} 26. Bf1 {[%clk 0:01:02]}  e5 {[%clk 0:00:02]} 27. Nf6 {[%clk 0:01:01]} 1-0


[Site "https://www.chess.com"]

[Event "Titled Tuesday Blitz February 15 Early 2022"]
[White "Kopylov, Alexander A."]
[Black "Gan-Erdene, Sugar"]
[WhiteFideId "4164857"]
[BlackFideId "4902980"]
[WhiteElo "2436"]
[BlackElo "2256"]
[Result "1-0"]
[Round "04"]
[TimeControl "180+1"]
[Date "2022.02.15"]
[WhiteClock "0:01:04"]
[BlackClock "0:00:16"]

1. e4 {[%clk 0:03:00]}  c5 {[%clk 0:02:59]} 2. Nf3 {[%clk 0:03:00]}  d6 {[%clk 0:02:59]} 3. d4 {[%clk 0:02:59]}  cxd4 {[%clk 0:03:00]} 4. Nxd4 {[%clk 0:03:00]}  Nf6 {[%clk 0:03:00]} 5. f3 {[%clk 0:02:57]}  Nc6 {[%clk 0:02:57]} 6. c4 {[%clk 0:02:52]}  e6 {[%clk 0:02:50]} 7. Nc3 {[%clk 0:02:51]}  Be7 {[%clk 0:02:50]} 8. Be3 {[%clk 0:02:51]}  O-O {[%clk 0:02:51]} 9. Be2 {[%clk 0:02:51]}  a6 {[%clk 0:02:51]} 10. O-O {[%clk 0:02:51]}  Bd7 {[%clk 0:02:49]} 11. Qd2 {[%clk 0:02:50]}  Rc8 {[%clk 0:02:48]} 12. Rac1 {[%clk 0:02:50]}  Kh8 {[%clk 0:02:48]} 13. Rfd1 {[%clk 0:02:49]}  Qa5 {[%clk 0:02:47]} 14. b3 {[%clk 0:02:48]}  Qh5 {[%clk 0:02:45]} 15. Bf1 {[%clk 0:02:41]}  Nxd4 {[%clk 0:02:43]} 16. Bxd4 {[%clk 0:02:39]}  b5 {[%clk 0:02:42]} 17. cxb5 {[%clk 0:02:31]}  axb5 {[%clk 0:02:41]} 18. Ne2 {[%clk 0:02:32]}  d5 {[%clk 0:02:20]} 19. Nf4 {[%clk 0:02:26]}  Qg5 {[%clk 0:02:10]} 20. Be3 {[%clk 0:02:23]}  d4 {[%clk 0:02:02]} 21. Qxd4 {[%clk 0:02:07]}  e5 {[%clk 0:02:02]} 22. Ne2 {[%clk 0:01:56]}  Qxg2+ {[%clk 0:01:17]} 23. Kxg2 {[%clk 0:01:57]}  exd4 {[%clk 0:01:17]} 24. Nxd4 {[%clk 0:01:58]}  b4 {[%clk 0:01:15]} 25. Bc4 {[%clk 0:01:52]}  Ra8 {[%clk 0:01:14]} 26. e5 {[%clk 0:01:48]}  Nh5 {[%clk 0:01:00]} 27. Rc2 {[%clk 0:01:35]}  Bc5 {[%clk 0:00:34]} 28. Bd5 {[%clk 0:01:35]}  Bxd4 {[%clk 0:00:32]} 29. Rxd4 {[%clk 0:01:34]}  Ra5 {[%clk 0:00:32]} 30. Be4 {[%clk 0:01:29]}  Be6 {[%clk 0:00:31]} 31. Rxb4 {[%clk 0:01:29]}  Rxe5 {[%clk 0:00:31]} 32. Rc5 {[%clk 0:01:23]}  Nf4+ {[%clk 0:00:30]} 33. Kg3 {[%clk 0:01:22]}  Nh5+ {[%clk 0:00:24]} 34. Kh4 {[%clk 0:01:22]}  Rxc5 {[%clk 0:00:24]} 35. Bxc5 {[%clk 0:01:22]}  Rc8 {[%clk 0:00:24]} 36. Bd6 {[%clk 0:01:18]}  Nf6 {[%clk 0:00:24]} 37. a4 {[%clk 0:01:09]}  h6 {[%clk 0:00:23]} 38. a5 {[%clk 0:01:07]}  g5+ {[%clk 0:00:24]} 39. Kg3 {[%clk 0:01:07]}  Rc1 {[%clk 0:00:22]} 40. Be5 {[%clk 0:01:06]}  Kg7 {[%clk 0:00:21]} 41. a6 {[%clk 0:01:06]}  h5 {[%clk 0:00:16]} 42. a7 {[%clk 0:01:05]}  Rc2 {[%clk 0:00:16]} 43. Bxc2 {[%clk 0:01:04]} 1-0


[Site "https://www.chess.com"]

[Event "Titled Tuesday Blitz February 15 Early 2022"]
[White "Korchmar, Vasiliy"]
[Black "Andreikin, Dmitry"]
[WhiteFideId "24131750"]
[BlackFideId "4158814"]
[WhiteElo "2370"]
[BlackElo "2736"]
[Result "0-1"]
[Round "04"]
[TimeControl "180+1"]
[Date "2022.02.15"]
[WhiteClock "0:00:05"]
[BlackClock "0:01:02"]

1. d4 {[%clk 0:03:00]}  Nf6 {[%clk 0:02:57]} 2. Bf4 {[%clk 0:03:00]}  c5 {[%clk 0:02:54]} 3. e3 {[%clk 0:02:54]}  g6 {[%clk 0:02:52]} 4. Nd2 {[%clk 0:02:51]}  Bg7 {[%clk 0:02:49]} 5. Ngf3 {[%clk 0:02:50]}  O-O {[%clk 0:02:46]} 6. Be2 {[%clk 0:02:50]}  cxd4 {[%clk 0:02:45]} 7. exd4 {[%clk 0:02:51]}  d6 {[%clk 0:02:44]} 8. O-O {[%clk 0:02:50]}  Qb6 {[%clk 0:02:42]} 9. Nc4 {[%clk 0:02:47]}  Qc7 {[%clk 0:02:43]} 10. h3 {[%clk 0:02:43]}  b5 {[%clk 0:02:34]} 11. Ne3 {[%clk 0:02:42]}  a6 {[%clk 0:02:34]} 12. c3 {[%clk 0:02:24]}  Nbd7 {[%clk 0:02:26]} 13. a4 {[%clk 0:02:23]}  Rb8 {[%clk 0:02:24]} 14. axb5 {[%clk 0:02:22]}  axb5 {[%clk 0:02:25]} 15. Qb3 {[%clk 0:01:59]}  Bb7 {[%clk 0:02:23]} 16. Ra7 {[%clk 0:01:50]}  Qb6 {[%clk 0:02:15]} 17. Rfa1 {[%clk 0:01:49]}  b4 {[%clk 0:02:05]} 18. R7a4 {[%clk 0:01:07]}  bxc3 {[%clk 0:01:54]} 19. Rb4 {[%clk 0:01:07]}  Qxb4 {[%clk 0:01:16]} 20. Qxb4 {[%clk 0:01:06]}  Bxf3 {[%clk 0:01:16]} 21. Qxc3 {[%clk 0:00:29]}  Bxe2 {[%clk 0:01:15]} 22. Ra7 {[%clk 0:00:25]}  Rfc8 {[%clk 0:01:11]} 23. Qd2 {[%clk 0:00:24]}  Bb5 {[%clk 0:01:11]} 24. b4 {[%clk 0:00:16]}  Ne4 {[%clk 0:01:05]} 25. Qa2 {[%clk 0:00:14]}  Bxd4 {[%clk 0:01:03]} 26. Ra5 {[%clk 0:00:08]}  Nc3 {[%clk 0:01:02]} 27. Qd2 {[%clk 0:00:06]}  Ne2+ {[%clk 0:01:02]} 28. Kh2 {[%clk 0:00:05]}  Bc3 {[%clk 0:01:02]} 0-1


[Site "https://www.chess.com"]

[Event "Titled Tuesday Blitz February 15 Early 2022"]
[White "Krylov, Ivan"]
[Black "Winkels, Marcel"]
[WhiteFideId "24128066"]
[BlackFideId "1003887"]
[WhiteElo "2258"]
[BlackElo "1900"]
[Result "0-1"]
[Round "04"]
[TimeControl "180+1"]
[Date "2022.02.15"]
[WhiteClock "0:00:12"]
[BlackClock "0:01:05"]

1. e4 {[%clk 0:03:00]}  c5 {[%clk 0:02:58]} 2. Nf3 {[%clk 0:03:01]}  g6 {[%clk 0:02:58]} 3. c3 {[%clk 0:03:01]}  Bg7 {[%clk 0:02:57]} 4. d4 {[%clk 0:03:02]}  cxd4 {[%clk 0:02:57]} 5. cxd4 {[%clk 0:03:03]}  d5 {[%clk 0:02:57]} 6. e5 {[%clk 0:03:02]}  Nh6 {[%clk 0:02:54]} 7. Bd3 {[%clk 0:02:55]}  Bf5 {[%clk 0:02:52]} 8. Nc3 {[%clk 0:02:51]}  Bxd3 {[%clk 0:02:51]} 9. Qxd3 {[%clk 0:02:52]}  O-O {[%clk 0:02:49]} 10. Qb5 {[%clk 0:02:38]}  Nc6 {[%clk 0:02:29]} 11. Qxd5 {[%clk 0:02:21]}  Qb6 {[%clk 0:02:25]} 12. O-O {[%clk 0:01:36]}  Rad8 {[%clk 0:02:23]} 13. Qb3 {[%clk 0:01:20]}  Qxb3 {[%clk 0:02:19]} 14. axb3 {[%clk 0:01:21]}  Nxd4 {[%clk 0:02:18]} 15. Nxd4 {[%clk 0:01:18]}  Rxd4 {[%clk 0:02:18]} 16. Rxa7 {[%clk 0:01:18]}  Rb4 {[%clk 0:02:13]} 17. Nd5 {[%clk 0:01:10]}  Rxb3 {[%clk 0:02:05]} 18. Nxe7+ {[%clk 0:01:09]}  Kh8 {[%clk 0:02:05]} 19. h3 {[%clk 0:01:04]}  Nf5 {[%clk 0:01:55]} 20. Nxf5 {[%clk 0:01:03]}  gxf5 {[%clk 0:01:55]} 21. Re1 {[%clk 0:00:59]}  Rc8 {[%clk 0:01:48]} 22. Ra4 {[%clk 0:00:55]}  Rc2 {[%clk 0:01:42]} 23. Bf4 {[%clk 0:00:45]}  Rbxb2 {[%clk 0:01:35]} 24. Bg3 {[%clk 0:00:42]}  h6 {[%clk 0:01:32]} 25. e6 {[%clk 0:00:40]}  fxe6 {[%clk 0:01:31]} 26. Rxe6 {[%clk 0:00:39]}  Re2 {[%clk 0:01:29]} 27. Ra8+ {[%clk 0:00:37]}  Kh7 {[%clk 0:01:28]} 28. Rxe2 {[%clk 0:00:35]}  Rxe2 {[%clk 0:01:26]} 29. Ra7 {[%clk 0:00:35]}  Rb2 {[%clk 0:01:23]} 30. Ra5 {[%clk 0:00:34]}  Kg6 {[%clk 0:01:21]} 31. Rd5 {[%clk 0:00:32]}  b5 {[%clk 0:01:20]} 32. Rd6+ {[%clk 0:00:32]}  Kf7 {[%clk 0:01:19]} 33. Rb6 {[%clk 0:00:32]}  b4 {[%clk 0:01:18]} 34. Rb7+ {[%clk 0:00:29]}  Kg6 {[%clk 0:01:17]} 35. Kf1 {[%clk 0:00:28]}  Rb1+ {[%clk 0:01:14]} 36. Ke2 {[%clk 0:00:28]}  b3 {[%clk 0:01:15]} 37. Kd3 {[%clk 0:00:27]}  b2 {[%clk 0:01:14]} 38. Kc2 {[%clk 0:00:27]}  Rc1+ {[%clk 0:01:11]} 39. Kd2 {[%clk 0:00:23]}  b1=Q {[%clk 0:01:11]} 40. Rxb1 {[%clk 0:00:22]}  Rxb1 {[%clk 0:01:12]} 41. Ke2 {[%clk 0:00:22]}  Rb3 {[%clk 0:01:11]} 42. Bf4 {[%clk 0:00:21]}  Bf6 {[%clk 0:01:10]} 43. Be3 {[%clk 0:00:21]}  Bg5 {[%clk 0:01:10]} 44. Bd4 {[%clk 0:00:19]}  f4 {[%clk 0:01:10]} 45. Ba7 {[%clk 0:00:17]}  Kf5 {[%clk 0:01:10]} 46. Bc5 {[%clk 0:00:16]}  Ke4 {[%clk 0:01:10]} 47. f3+ {[%clk 0:00:15]}  Kd5 {[%clk 0:01:09]} 48. Bf8 {[%clk 0:00:14]}  h5 {[%clk 0:01:08]} 49. Bg7 {[%clk 0:00:13]}  Ra3 {[%clk 0:01:06]} 50. Bc3 {[%clk 0:00:12]}  Rxc3 {[%clk 0:01:05]} 0-1


[Site "https://www.chess.com"]

[Event "Titled Tuesday Blitz February 15 Early 2022"]
[White "Kuzmin, Roman"]
[Black "Redzisz, Michal"]
[WhiteFideId "44134932"]
[BlackFideId "21816107"]
[WhiteElo "1978"]
[BlackElo "1961"]
[Result "0-1"]
[Round "04"]
[TimeControl "180+1"]
[Date "2022.02.15"]
[WhiteClock "0:00:02"]
[BlackClock "0:00:37"]

1. e4 {[%clk 0:03:00]}  d5 {[%clk 0:02:58]} 2. exd5 {[%clk 0:03:00]}  Qxd5 {[%clk 0:02:59]} 3. Nc3 {[%clk 0:03:00]}  Qa5 {[%clk 0:02:59]} 4. d4 {[%clk 0:03:00]}  c6 {[%clk 0:02:59]} 5. Nf3 {[%clk 0:03:00]}  Nf6 {[%clk 0:02:59]} 6. Be2 {[%clk 0:03:00]}  Bg4 {[%clk 0:02:59]} 7. O-O {[%clk 0:03:00]}  e6 {[%clk 0:03:00]} 8. h3 {[%clk 0:03:00]}  Bh5 {[%clk 0:02:59]} 9. Be3 {[%clk 0:02:59]}  Bd6 {[%clk 0:02:56]} 10. a3 {[%clk 0:02:58]}  Nbd7 {[%clk 0:02:55]} 11. b4 {[%clk 0:02:58]}  Qc7 {[%clk 0:02:55]} 12. Na4 {[%clk 0:02:53]}  O-O {[%clk 0:02:54]} 13. c4 {[%clk 0:02:53]}  Rad8 {[%clk 0:02:49]} 14. Qb3 {[%clk 0:02:51]}  Bf4 {[%clk 0:02:46]} 15. Rfd1 {[%clk 0:02:46]}  Bxe3 {[%clk 0:02:26]} 16. Qxe3 {[%clk 0:02:46]}  Rfe8 {[%clk 0:02:26]} 17. Ne5 {[%clk 0:02:39]}  Bxe2 {[%clk 0:02:25]} 18. Qxe2 {[%clk 0:02:39]}  a6 {[%clk 0:02:12]} 19. Nc3 {[%clk 0:01:58]}  a5 {[%clk 0:01:51]} 20. g4 {[%clk 0:01:21]}  axb4 {[%clk 0:01:37]} 21. axb4 {[%clk 0:01:21]}  Ra8 {[%clk 0:01:36]} 22. g5 {[%clk 0:01:14]}  Nxe5 {[%clk 0:01:35]} 23. dxe5 {[%clk 0:01:14]}  Nd7 {[%clk 0:01:29]} 24. Rxa8 {[%clk 0:00:31]}  Rxa8 {[%clk 0:01:30]} 25. Rd6 {[%clk 0:00:31]}  Nf8 {[%clk 0:01:22]} 26. c5 {[%clk 0:00:30]}  Ra1+ {[%clk 0:01:15]} 27. Kg2 {[%clk 0:00:28]}  b6 {[%clk 0:01:16]} 28. Qe4 {[%clk 0:00:19]}  bxc5 {[%clk 0:01:12]} 29. Rxc6 {[%clk 0:00:19]}  Qe7 {[%clk 0:01:06]} 30. Rxc5 {[%clk 0:00:14]}  Qxg5+ {[%clk 0:01:06]} 31. Qg4 {[%clk 0:00:14]}  Qc1 {[%clk 0:00:57]} 32. Ne2 {[%clk 0:00:03]}  Qh1+ {[%clk 0:00:46]} 33. Kg3 {[%clk 0:00:04]}  h5 {[%clk 0:00:37]} 34. Qxh5 {[%clk 0:00:02]}  Qe4 {[%clk 0:00:37]} 0-1


[Site "https://www.chess.com"]